[Event "Titled Tuesday Blitz December 27 Late 2022"]
[White "Chernomordik, Pavel"]
[Black "Gorodetzky, David"]
[WhiteFideId "2804530"]
[BlackFideId "2813416"]
[WhiteElo "2150"]
[BlackElo "2485"]
[Result "0-1"]
[Round "01"]
[TimeControl "180+2"]
[Date "2022.12.27"]
[WhiteClock "0:00:03"]
[BlackClock "0:01:25"]

1. e4 {[%clk 0:01:15]}  Nf6 {[%clk 0:02:56]} 2. Nc3 {[%clk 0:01:10]}  e6 {[%clk 0:02:46]} 3. d4 {[%clk 0:01:07]}  d5 {[%clk 0:02:46]} 4. Bg5 {[%clk 0:01:01]}  Bb4 {[%clk 0:02:36]} 5. e5 {[%clk 0:01:00]}  h6 {[%clk 0:02:36]} 6. Bh4 {[%clk 0:00:59]}  g5 {[%clk 0:02:32]} 7. Bg3 {[%clk 0:00:59]}  Ne4 {[%clk 0:02:31]} 8. Ne2 {[%clk 0:00:58]}  c5 {[%clk 0:02:31]} 9. a3 {[%clk 0:00:57]}  Bxc3+ {[%clk 0:02:25]} 10. Nxc3 {[%clk 0:00:56]}  Nxg3 {[%clk 0:02:22]} 11. hxg3 {[%clk 0:00:53]}  a6 {[%clk 0:02:22]} 12. dxc5 {[%clk 0:00:52]}  Nc6 {[%clk 0:02:20]} 13. f4 {[%clk 0:00:51]}  b6 {[%clk 0:02:18]} 14. f5 {[%clk 0:00:36]}  bxc5 {[%clk 0:02:15]} 15. fxe6 {[%clk 0:00:36]}  Bxe6 {[%clk 0:02:14]} 16. Qf3 {[%clk 0:00:30]}  Nxe5 {[%clk 0:02:08]} 17. Qe3 {[%clk 0:00:28]}  Qc7 {[%clk 0:02:00]} 18. O-O-O {[%clk 0:00:24]}  d4 {[%clk 0:02:00]} 19. Qe4 {[%clk 0:00:24]}  Rb8 {[%clk 0:01:55]} 20. Nd5 {[%clk 0:00:22]}  Qd6 {[%clk 0:01:50]} 21. Nf6+ {[%clk 0:00:15]}  Ke7 {[%clk 0:01:51]} 22. Nh5 {[%clk 0:00:10]}  f5 {[%clk 0:01:33]} 23. Qe1 {[%clk 0:00:06]}  c4 {[%clk 0:01:31]} 24. Qf2 {[%clk 0:00:03]}  Rxb2 {[%clk 0:01:25]} 0-1


[Site "https://www.chess.com"]

[Event "Titled Tuesday Blitz December 27 Late 2022"]
[White "Darini, Pouria"]
[Black "Rengifo Blancas, Renzo Jhonathan"]
[WhiteFideId "12502200"]
[BlackFideId "3807185"]
[WhiteElo "2401"]
[BlackElo "2131"]
[Result "1-0"]
[Round "01"]
[TimeControl "180+2"]
[Date "2022.12.27"]
[WhiteClock "0:01:02"]
[BlackClock "0:00:01"]

1. c4 {[%clk 0:02:57]}  e6 {[%clk 0:03:00]} 2. Nf3 {[%clk 0:02:56]}  d5 {[%clk 0:03:01]} 3. g3 {[%clk 0:02:57]}  Nf6 {[%clk 0:03:00]} 4. Bg2 {[%clk 0:02:57]}  c5 {[%clk 0:03:01]} 5. cxd5 {[%clk 0:02:55]}  exd5 {[%clk 0:03:02]} 6. d4 {[%clk 0:02:55]}  Nc6 {[%clk 0:03:02]} 7. O-O {[%clk 0:02:55]}  Be7 {[%clk 0:03:03]} 8. dxc5 {[%clk 0:02:54]}  Bxc5 {[%clk 0:03:04]} 9. Nc3 {[%clk 0:02:51]}  O-O {[%clk 0:03:02]} 10. Na4 {[%clk 0:02:51]}  Bb6 {[%clk 0:03:00]} 11. Nxb6 {[%clk 0:02:50]}  Qxb6 {[%clk 0:02:57]} 12. b3 {[%clk 0:02:44]}  Rd8 {[%clk 0:02:56]} 13. Bg5 {[%clk 0:02:41]}  Bg4 {[%clk 0:02:50]} 14. Bxf6 {[%clk 0:02:40]}  gxf6 {[%clk 0:02:50]} 15. Rc1 {[%clk 0:02:36]}  d4 {[%clk 0:02:43]} 16. Qd2 {[%clk 0:02:34]}  Ne5 {[%clk 0:02:36]} 17. Nxe5 {[%clk 0:02:13]}  fxe5 {[%clk 0:02:36]} 18. Qg5+ {[%clk 0:02:14]}  Qg6 {[%clk 0:02:35]} 19. Qxe5 {[%clk 0:02:15]}  Re8 {[%clk 0:01:51]} 20. Qxd4 {[%clk 0:02:14]}  Bxe2 {[%clk 0:01:51]} 21. Rfe1 {[%clk 0:02:12]}  Rad8 {[%clk 0:00:42]} 22. Qxa7 {[%clk 0:02:10]}  Ra8 {[%clk 0:00:42]} 23. Qxb7 {[%clk 0:02:03]}  Rxa2 {[%clk 0:00:42]} 24. Rc8 {[%clk 0:01:58]}  Rxc8 {[%clk 0:00:37]} 25. Qxc8+ {[%clk 0:01:59]}  Kg7 {[%clk 0:00:37]} 26. Qc3+ {[%clk 0:02:00]}  Kg8 {[%clk 0:00:37]} 27. b4 {[%clk 0:01:49]}  Rc2 {[%clk 0:00:36]} 28. Qd4 {[%clk 0:01:44]}  Qg7 {[%clk 0:00:27]} 29. Qd8+ {[%clk 0:01:10]}  Qf8 {[%clk 0:00:27]} 30. Qxf8+ {[%clk 0:01:04]}  Kxf8 {[%clk 0:00:28]} 31. Be4 {[%clk 0:01:02]}  Rb2 {[%clk 0:00:27]} 32. Bxh7 {[%clk 0:01:02]}  Bf3 {[%clk 0:00:25]} 33. Rb1 {[%clk 0:01:02]}  Rxb1+ {[%clk 0:00:15]} 34. Bxb1 {[%clk 0:01:02]}  Be2 {[%clk 0:00:11]} 35. f4 {[%clk 0:01:01]}  Ke7 {[%clk 0:00:11]} 36. Kf2 {[%clk 0:01:02]}  Ba6 {[%clk 0:00:11]} 37. Ke3 {[%clk 0:01:02]}  Kd6 {[%clk 0:00:11]} 38. Bd3 {[%clk 0:01:02]}  Bc8 {[%clk 0:00:11]} 39. h4 {[%clk 0:01:02]}  Bg4 {[%clk 0:00:11]} 40. Kd4 {[%clk 0:01:01]}  Kc6 {[%clk 0:00:11]} 41. Ke5 {[%clk 0:01:01]}  Bh5 {[%clk 0:00:09]} 42. Kf6 {[%clk 0:00:58]}  Kb6 {[%clk 0:00:08]} 43. Bc4 {[%clk 0:00:58]}  Bg4 {[%clk 0:00:07]} 44. Bxf7 {[%clk 0:00:59]}  Kb5 {[%clk 0:00:07]} 45. h5 {[%clk 0:01:00]}  Bxh5 {[%clk 0:00:06]} 46. Bxh5 {[%clk 0:01:00]}  Kxb4 {[%clk 0:00:06]} 47. Ke5 {[%clk 0:01:01]}  Kc3 {[%clk 0:00:01]} 48. f5 {[%clk 0:01:02]} 1-0


[Site "https://www.chess.com"]

[Event "Titled Tuesday Blitz December 27 Late 2022"]
[White "De Oliveira, Gustavo Alfredo Bue"]
[Black "Barp, Alberto"]
[WhiteFideId "2171201"]
[BlackFideId "872555"]
[WhiteElo "2139"]
[BlackElo "2432"]
[Result "0-1"]
[Round "01"]
[TimeControl "180+2"]
[Date "2022.12.27"]
[WhiteClock "0:00:15"]
[BlackClock "0:00:11"]

1. Nf3 {[%clk 0:03:00]}  d5 {[%clk 0:02:44]} 2. b3 {[%clk 0:02:57]}  c6 {[%clk 0:02:43]} 3. Bb2 {[%clk 0:02:57]}  Nf6 {[%clk 0:02:41]} 4. e3 {[%clk 0:02:57]}  Bf5 {[%clk 0:02:39]} 5. Be2 {[%clk 0:02:57]}  h6 {[%clk 0:02:38]} 6. O-O {[%clk 0:02:57]}  Nbd7 {[%clk 0:02:39]} 7. Ne5 {[%clk 0:02:57]}  e6 {[%clk 0:02:36]} 8. f4 {[%clk 0:02:57]}  Be7 {[%clk 0:02:25]} 9. d3 {[%clk 0:02:56]}  Qb6 {[%clk 0:02:24]} 10. d4 {[%clk 0:02:38]}  O-O {[%clk 0:02:17]} 11. Nd2 {[%clk 0:02:33]}  c5 {[%clk 0:02:14]} 12. c3 {[%clk 0:02:28]}  Rad8 {[%clk 0:02:07]} 13. Kh1 {[%clk 0:02:28]}  Bh7 {[%clk 0:01:21]} 14. Bf3 {[%clk 0:02:20]}  Ne8 {[%clk 0:01:11]} 15. Rg1 {[%clk 0:02:19]}  Nd6 {[%clk 0:01:09]} 16. g4 {[%clk 0:02:16]}  f6 {[%clk 0:01:08]} 17. Nxd7 {[%clk 0:02:14]}  Rxd7 {[%clk 0:01:09]} 18. h4 {[%clk 0:02:07]}  Qd8 {[%clk 0:01:05]} 19. Qe2 {[%clk 0:02:01]}  b6 {[%clk 0:01:02]} 20. Raf1 {[%clk 0:02:00]}  Ne4 {[%clk 0:01:02]} 21. Bxe4 {[%clk 0:01:57]}  dxe4 {[%clk 0:01:00]} 22. Rf2 {[%clk 0:01:47]}  Qa8 {[%clk 0:00:56]} 23. Rfg2 {[%clk 0:01:43]}  Qc6 {[%clk 0:00:52]} 24. Nf1 {[%clk 0:01:36]}  Bg6 {[%clk 0:00:45]} 25. Ng3 {[%clk 0:01:32]}  Rf7 {[%clk 0:00:41]} 26. f5 {[%clk 0:01:31]}  Bh7 {[%clk 0:00:40]} 27. Qc4 {[%clk 0:01:25]}  exf5 {[%clk 0:00:37]} 28. gxf5 {[%clk 0:01:20]}  b5 {[%clk 0:00:38]} 29. Qe6 {[%clk 0:01:19]}  Rd6 {[%clk 0:00:36]} 30. d5 {[%clk 0:01:12]}  Qc7 {[%clk 0:00:31]} 31. Nh5 {[%clk 0:01:10]}  Rxe6 {[%clk 0:00:24]} 32. dxe6 {[%clk 0:01:06]}  Rf8 {[%clk 0:00:22]} 33. Rxg7+ {[%clk 0:01:02]}  Kh8 {[%clk 0:00:23]} 34. c4 {[%clk 0:00:58]}  Qd8 {[%clk 0:00:19]} 35. cxb5 {[%clk 0:00:52]}  Bxf5 {[%clk 0:00:17]} 36. Nf4 {[%clk 0:00:47]}  Qe8 {[%clk 0:00:14]} 37. Kh2 {[%clk 0:00:42]}  h5 {[%clk 0:00:12]} 38. R7g3 {[%clk 0:00:38]}  Bg4 {[%clk 0:00:12]} 39. Nd5 {[%clk 0:00:31]}  Kh7 {[%clk 0:00:12]} 40. Rf1 {[%clk 0:00:23]}  f5 {[%clk 0:00:12]} 41. Rd1 {[%clk 0:00:19]}  Bxh4 {[%clk 0:00:11]} 42. Rxg4 {[%clk 0:00:17]}  fxg4 {[%clk 0:00:11]} 43. Rd2 {[%clk 0:00:16]}  Qxe6 {[%clk 0:00:11]} 44. Nf4 {[%clk 0:00:16]}  Rxf4 {[%clk 0:00:11]} 45. exf4 {[%clk 0:00:16]}  e3 {[%clk 0:00:11]} 46. Re2 {[%clk 0:00:16]}  Qe4 {[%clk 0:00:11]} 47. Bc1 {[%clk 0:00:15]}  Qxf4+ {[%clk 0:00:11]} 48. Kg2 {[%clk 0:00:15]}  Qf3+ {[%clk 0:00:12]} 49. Kg1 {[%clk 0:00:15]}  Qxe2 {[%clk 0:00:11]} 0-1


[Site "https://www.chess.com"]

[Event "Titled Tuesday Blitz December 27 Late 2022"]
[White "Defend, Balint"]
[Black "Ptacnikova, Lenka"]
[WhiteFideId "17004853"]
[BlackFideId "305650"]
[WhiteElo "1673"]
[BlackElo "2099"]
[Result "1-0"]
[Round "01"]
[TimeControl "180+2"]
[Date "2022.12.27"]
[WhiteClock "0:00:08"]
[BlackClock "0:00:01"]

1. e4 {[%clk 0:02:52]}  c5 {[%clk 0:02:58]} 2. Nf3 {[%clk 0:02:52]}  e6 {[%clk 0:02:57]} 3. c3 {[%clk 0:02:52]}  Nf6 {[%clk 0:02:56]} 4. e5 {[%clk 0:02:52]}  Nd5 {[%clk 0:02:56]} 5. d4 {[%clk 0:02:53]}  cxd4 {[%clk 0:02:57]} 6. cxd4 {[%clk 0:02:54]}  d6 {[%clk 0:02:57]} 7. Bc4 {[%clk 0:02:54]}  dxe5 {[%clk 0:02:56]} 8. dxe5 {[%clk 0:02:55]}  Nc6 {[%clk 0:02:50]} 9. Qe2 {[%clk 0:02:49]}  Na5 {[%clk 0:02:32]} 10. Bd3 {[%clk 0:02:36]}  Nb4 {[%clk 0:02:31]} 11. Bb5+ {[%clk 0:02:33]}  Bd7 {[%clk 0:02:30]} 12. O-O {[%clk 0:02:32]}  Bxb5 {[%clk 0:02:29]} 13. Qxb5+ {[%clk 0:02:33]}  Nac6 {[%clk 0:02:09]} 14. Nc3 {[%clk 0:02:26]}  a6 {[%clk 0:02:01]} 15. Qe2 {[%clk 0:02:22]}  Be7 {[%clk 0:01:53]} 16. Rd1 {[%clk 0:02:19]}  Nd5 {[%clk 0:01:43]} 17. Nxd5 {[%clk 0:02:15]}  exd5 {[%clk 0:01:43]} 18. Bf4 {[%clk 0:02:11]}  O-O {[%clk 0:01:40]} 19. e6 {[%clk 0:02:09]}  Bf6 {[%clk 0:01:29]} 20. exf7+ {[%clk 0:01:57]}  Rxf7 {[%clk 0:01:29]} 21. Rab1 {[%clk 0:01:57]}  Qa5 {[%clk 0:01:19]} 22. a3 {[%clk 0:01:53]}  Re7 {[%clk 0:01:09]} 23. Qd3 {[%clk 0:01:51]}  Rd8 {[%clk 0:01:07]} 24. Bg5 {[%clk 0:01:46]}  Bxg5 {[%clk 0:00:36]} 25. Nxg5 {[%clk 0:01:47]}  g6 {[%clk 0:00:36]} 26. h4 {[%clk 0:01:24]}  Ne5 {[%clk 0:00:27]} 27. Qg3 {[%clk 0:01:23]}  Qb5 {[%clk 0:00:23]} 28. h5 {[%clk 0:01:20]}  Kg7 {[%clk 0:00:20]} 29. hxg6 {[%clk 0:01:15]}  hxg6 {[%clk 0:00:19]} 30. Qf4 {[%clk 0:00:58]}  Rf8 {[%clk 0:00:16]} 31. Qd4 {[%clk 0:00:58]}  Qc4 {[%clk 0:00:15]} 32. Qxd5 {[%clk 0:00:55]}  Qf4 {[%clk 0:00:13]} 33. Ne4 {[%clk 0:00:45]}  Ng4 {[%clk 0:00:10]} 34. Qd4+ {[%clk 0:00:43]}  Kh6 {[%clk 0:00:09]} 35. Ng3 {[%clk 0:00:24]}  Nxf2 {[%clk 0:00:06]} 36. Qxf4+ {[%clk 0:00:20]}  Rxf4 {[%clk 0:00:05]} 37. Rf1 {[%clk 0:00:20]}  Nd3 {[%clk 0:00:05]} 38. Rxf4 {[%clk 0:00:19]}  Nxf4 {[%clk 0:00:06]} 39. Rd1 {[%clk 0:00:17]}  Ne2+ {[%clk 0:00:04]} 40. Kf2 {[%clk 0:00:14]}  Nxg3 {[%clk 0:00:02]} 41. Kxg3 {[%clk 0:00:14]}  Re2 {[%clk 0:00:02]} 42. Rb1 {[%clk 0:00:12]}  Re3+ {[%clk 0:00:01]} 43. Kf2 {[%clk 0:00:12]}  Rb3 {[%clk 0:00:01]} 44. Ke2 {[%clk 0:00:11]}  a5 {[%clk 0:00:01]} 45. Kd2 {[%clk 0:00:09]}  Kg5 {[%clk 0:00:01]} 46. Kc2 {[%clk 0:00:08]} 1-0


[Site "https://www.chess.com"]

[Event "Titled Tuesday Blitz December 27 Late 2022"]
[White "Desideri, Ricardo Maruchi"]
[Black "Pham, Khoi"]
[WhiteFideId "2110440"]
[BlackFideId "1054988"]
[WhiteElo "1959"]
[BlackElo "2355"]
[Result "0-1"]
[Round "01"]
[TimeControl "180+2"]
[Date "2022.12.27"]
[WhiteClock "0:00:03"]
[BlackClock "0:00:28"]

1. e4 {[%clk 0:02:57]}  c6 {[%clk 0:02:58]} 2. d4 {[%clk 0:02:56]}  d5 {[%clk 0:02:59]} 3. e5 {[%clk 0:02:55]}  c5 {[%clk 0:02:58]} 4. dxc5 {[%clk 0:02:52]}  e6 {[%clk 0:02:57]} 5. Be3 {[%clk 0:02:40]}  Nc6 {[%clk 0:02:53]} 6. Bb5 {[%clk 0:02:36]}  Bd7 {[%clk 0:02:42]} 7. Bxc6 {[%clk 0:02:33]}  Bxc6 {[%clk 0:02:43]} 8. f4 {[%clk 0:02:29]}  Ne7 {[%clk 0:02:39]} 9. Nf3 {[%clk 0:02:25]}  Nf5 {[%clk 0:02:38]} 10. Bf2 {[%clk 0:02:23]}  h5 {[%clk 0:02:36]} 11. c3 {[%clk 0:02:19]}  Bb5 {[%clk 0:02:29]} 12. a4 {[%clk 0:02:12]}  Bd7 {[%clk 0:02:17]} 13. b4 {[%clk 0:02:09]}  b6 {[%clk 0:02:10]} 14. cxb6 {[%clk 0:01:54]}  axb6 {[%clk 0:02:11]} 15. Nbd2 {[%clk 0:01:47]}  h4 {[%clk 0:02:08]} 16. O-O {[%clk 0:01:42]}  Be7 {[%clk 0:02:06]} 17. Nd4 {[%clk 0:01:27]}  Nxd4 {[%clk 0:01:53]} 18. Bxd4 {[%clk 0:01:25]}  h3 {[%clk 0:01:51]} 19. g3 {[%clk 0:01:21]}  f6 {[%clk 0:01:46]} 20. Nf3 {[%clk 0:01:18]}  Qc7 {[%clk 0:01:41]} 21. Qc2 {[%clk 0:01:06]}  Kf7 {[%clk 0:01:34]} 22. Nh4 {[%clk 0:00:53]}  f5 {[%clk 0:01:30]} 23. Nf3 {[%clk 0:00:51]}  Bxb4 {[%clk 0:01:28]} 24. Ng5+ {[%clk 0:00:37]}  Ke7 {[%clk 0:01:28]} 25. Rab1 {[%clk 0:00:31]}  Bc5 {[%clk 0:01:27]} 26. Qf2 {[%clk 0:00:17]}  Bxd4 {[%clk 0:01:16]} 27. cxd4 {[%clk 0:00:15]}  Rxa4 {[%clk 0:01:15]} 28. Rfc1 {[%clk 0:00:16]}  Rc4 {[%clk 0:00:53]} 29. Qb2 {[%clk 0:00:13]}  Rc8 {[%clk 0:00:50]} 30. Rxc4 {[%clk 0:00:08]}  Qxc4 {[%clk 0:00:51]} 31. Qxb6 {[%clk 0:00:07]}  Rc6 {[%clk 0:00:42]} 32. Qb4+ {[%clk 0:00:05]}  Qxb4 {[%clk 0:00:42]} 33. Rxb4 {[%clk 0:00:05]}  Rc1+ {[%clk 0:00:41]} 34. Kf2 {[%clk 0:00:05]}  Rc2+ {[%clk 0:00:39]} 35. Kg1 {[%clk 0:00:05]}  Rc4 {[%clk 0:00:27]} 36. Rxc4 {[%clk 0:00:03]}  dxc4 {[%clk 0:00:28]} 37. Nxh3 {[%clk 0:00:03]}  c3 {[%clk 0:00:28]} 0-1


[Site "https://www.chess.com"]

[Event "Titled Tuesday Blitz December 27 Late 2022"]
[White "Djokic, Mihailo"]
[Black "Weisz, Bryan"]
[WhiteFideId "976440"]
[BlackFideId "30934133"]
[WhiteElo "2192"]
[BlackElo "1973"]
[Result "1-0"]
[Round "01"]
[TimeControl "180+2"]
[Date "2022.12.27"]
[WhiteClock "0:00:44"]
[BlackClock "0:00:06"]

1. d4 {[%clk 0:02:59]}  Nf6 {[%clk 0:02:59]} 2. Nf3 {[%clk 0:02:58]}  g6 {[%clk 0:03:00]} 3. g3 {[%clk 0:02:58]}  Bg7 {[%clk 0:03:00]} 4. Bg2 {[%clk 0:02:59]}  O-O {[%clk 0:03:01]} 5. O-O {[%clk 0:03:00]}  Nc6 {[%clk 0:02:55]} 6. d5 {[%clk 0:02:56]}  Na5 {[%clk 0:02:34]} 7. Re1 {[%clk 0:02:47]}  e6 {[%clk 0:02:13]} 8. e4 {[%clk 0:02:30]}  exd5 {[%clk 0:02:06]} 9. e5 {[%clk 0:02:19]}  Ne8 {[%clk 0:01:56]} 10. Qxd5 {[%clk 0:02:18]}  c6 {[%clk 0:01:48]} 11. Qd3 {[%clk 0:02:16]}  d5 {[%clk 0:01:20]} 12. b3 {[%clk 0:02:00]}  f6 {[%clk 0:01:08]} 13. Bb2 {[%clk 0:01:55]}  Bf5 {[%clk 0:00:59]} 14. Qd2 {[%clk 0:01:52]}  fxe5 {[%clk 0:00:59]} 15. Bxe5 {[%clk 0:01:48]}  Bxe5 {[%clk 0:00:43]} 16. Nxe5 {[%clk 0:01:46]}  Nd6 {[%clk 0:00:41]} 17. Nc3 {[%clk 0:01:41]}  Re8 {[%clk 0:00:18]} 18. Rad1 {[%clk 0:01:30]}  Qf6 {[%clk 0:00:16]} 19. Nxd5 {[%clk 0:01:25]}  cxd5 {[%clk 0:00:16]} 20. Qxd5+ {[%clk 0:01:22]}  Kg7 {[%clk 0:00:15]} 21. Qxa5 {[%clk 0:01:17]}  Bxc2 {[%clk 0:00:15]} 22. Qc7+ {[%clk 0:01:17]}  Re7 {[%clk 0:00:11]} 23. Qxc2 {[%clk 0:01:13]}  Rxe5 {[%clk 0:00:12]} 24. Qc7+ {[%clk 0:01:13]}  Nf7 {[%clk 0:00:11]} 25. Rxe5 {[%clk 0:01:09]}  Qxe5 {[%clk 0:00:12]} 26. Qxe5+ {[%clk 0:01:09]}  Nxe5 {[%clk 0:00:12]} 27. Bxb7 {[%clk 0:01:09]}  Rb8 {[%clk 0:00:11]} 28. Be4 {[%clk 0:01:08]}  Kf6 {[%clk 0:00:10]} 29. Rd6+ {[%clk 0:01:06]}  Ke7 {[%clk 0:00:10]} 30. Ra6 {[%clk 0:01:07]}  Nd7 {[%clk 0:00:07]} 31. Rxa7 {[%clk 0:01:07]}  Rc8 {[%clk 0:00:08]} 32. Kg2 {[%clk 0:01:05]}  Kd6 {[%clk 0:00:05]} 33. b4 {[%clk 0:01:04]}  Rc4 {[%clk 0:00:05]} 34. Ra6+ {[%clk 0:01:00]}  Kc7 {[%clk 0:00:04]} 35. Bd3 {[%clk 0:00:50]}  Rxb4 {[%clk 0:00:04]} 36. Ra7+ {[%clk 0:00:48]}  Kd6 {[%clk 0:00:04]} 37. a4 {[%clk 0:00:47]}  Nc5 {[%clk 0:00:04]} 38. Bb5 {[%clk 0:00:48]}  Rb2 {[%clk 0:00:02]} 39. Rxh7 {[%clk 0:00:47]}  Ne4 {[%clk 0:00:03]} 40. Rf7 {[%clk 0:00:46]}  Ke6 {[%clk 0:00:03]} 41. Rf3 {[%clk 0:00:45]}  Nd2 {[%clk 0:00:03]} 42. Re3+ {[%clk 0:00:45]}  Kd6 {[%clk 0:00:04]} 43. Re2 {[%clk 0:00:46]}  Kc5 {[%clk 0:00:04]} 44. Be8 {[%clk 0:00:45]}  Kb4 {[%clk 0:00:04]} 45. h4 {[%clk 0:00:43]}  Rc2 {[%clk 0:00:02]} 46. Bxg6 {[%clk 0:00:43]}  Rb2 {[%clk 0:00:02]} 47. h5 {[%clk 0:00:43]}  Kxa4 {[%clk 0:00:03]} 48. h6 {[%clk 0:00:43]}  Rb6 {[%clk 0:00:02]} 49. Rxd2 {[%clk 0:00:44]}  Rxg6 {[%clk 0:00:02]} 50. h7 {[%clk 0:00:44]}  Rh6 {[%clk 0:00:03]} 51. Rd7 {[%clk 0:00:44]}  Kb5 {[%clk 0:00:04]} 52. Rg7 {[%clk 0:00:44]}  Kc6 {[%clk 0:00:04]} 53. g4 {[%clk 0:00:44]}  Kd6 {[%clk 0:00:04]} 54. g5 {[%clk 0:00:45]}  Rh5 {[%clk 0:00:05]} 55. g6 {[%clk 0:00:45]}  Ke6 {[%clk 0:00:06]} 56. Rg8 {[%clk 0:00:45]}  Rg5+ {[%clk 0:00:05]} 57. Kf1 {[%clk 0:00:45]}  Ra5 {[%clk 0:00:05]} 58. h8=Q {[%clk 0:00:45]}  Ra1+ {[%clk 0:00:06]} 59. Qxa1 {[%clk 0:00:44]} 1-0


[Site "https://www.chess.com"]

[Event "Titled Tuesday Blitz December 27 Late 2022"]
[White "Estrada Nieto, Julian"]
[Black "Bazeev, German"]
[WhiteFideId "5101018"]
[BlackFideId "24119350"]
[WhiteElo "2215"]
[BlackElo "2369"]
[Result "1-0"]
[Round "01"]
[TimeControl "180+2"]
[Date "2022.12.27"]
[WhiteClock "0:00:17"]
[BlackClock "0:00:11"]

1. e4 {[%clk 0:03:00]}  c5 {[%clk 0:02:06]} 2. Nf3 {[%clk 0:03:00]}  Nf6 {[%clk 0:01:57]} 3. Nc3 {[%clk 0:02:59]}  Nc6 {[%clk 0:01:57]} 4. Bb5 {[%clk 0:02:59]}  e5 {[%clk 0:01:56]} 5. O-O {[%clk 0:02:39]}  d6 {[%clk 0:01:56]} 6. d3 {[%clk 0:02:37]}  Bg4 {[%clk 0:01:56]} 7. h3 {[%clk 0:02:35]}  Bh5 {[%clk 0:01:56]} 8. Bg5 {[%clk 0:02:30]}  Be7 {[%clk 0:01:56]} 9. Bxf6 {[%clk 0:02:26]}  Bxf6 {[%clk 0:01:57]} 10. Nd5 {[%clk 0:02:26]}  O-O {[%clk 0:01:56]} 11. g4 {[%clk 0:02:25]}  Bg6 {[%clk 0:01:56]} 12. Nxf6+ {[%clk 0:02:15]}  Qxf6 {[%clk 0:01:56]} 13. Bxc6 {[%clk 0:02:16]}  bxc6 {[%clk 0:01:55]} 14. Nh2 {[%clk 0:02:17]}  c4 {[%clk 0:01:44]} 15. Qf3 {[%clk 0:02:07]}  Qxf3 {[%clk 0:01:42]} 16. Nxf3 {[%clk 0:02:08]}  cxd3 {[%clk 0:01:43]} 17. cxd3 {[%clk 0:02:08]}  Rab8 {[%clk 0:01:44]} 18. b3 {[%clk 0:02:08]}  f6 {[%clk 0:01:43]} 19. Rac1 {[%clk 0:02:04]}  c5 {[%clk 0:01:43]} 20. Nh4 {[%clk 0:01:54]}  Bf7 {[%clk 0:01:42]} 21. Nf5 {[%clk 0:01:54]}  Rb6 {[%clk 0:01:38]} 22. f4 {[%clk 0:01:47]}  Re8 {[%clk 0:01:24]} 23. Kg2 {[%clk 0:01:44]}  Ra6 {[%clk 0:01:21]} 24. fxe5 {[%clk 0:01:37]}  fxe5 {[%clk 0:01:16]} 25. Rf2 {[%clk 0:01:36]}  Be6 {[%clk 0:01:16]} 26. Rcf1 {[%clk 0:01:31]}  Bxf5 {[%clk 0:01:08]} 27. gxf5 {[%clk 0:01:29]}  Kf7 {[%clk 0:01:06]} 28. Kf3 {[%clk 0:01:28]}  Rb6 {[%clk 0:01:01]} 29. Ke3 {[%clk 0:01:27]}  Rb7 {[%clk 0:01:00]} 30. Rg2 {[%clk 0:01:22]}  Kf8 {[%clk 0:00:59]} 31. Rfg1 {[%clk 0:01:22]}  Rf7 {[%clk 0:00:59]} 32. h4 {[%clk 0:01:21]}  Ree7 {[%clk 0:00:55]} 33. Rg5 {[%clk 0:01:19]}  Rf6 {[%clk 0:00:55]} 34. Kd2 {[%clk 0:01:16]}  a5 {[%clk 0:00:52]} 35. Rc1 {[%clk 0:01:14]}  Rb7 {[%clk 0:00:52]} 36. Rc4 {[%clk 0:01:13]}  Rb4 {[%clk 0:00:52]} 37. Kc3 {[%clk 0:01:12]}  g6 {[%clk 0:00:48]} 38. a3 {[%clk 0:00:56]}  Rb5 {[%clk 0:00:46]} 39. Ra4 {[%clk 0:00:55]}  gxf5 {[%clk 0:00:46]} 40. exf5 {[%clk 0:00:51]}  d5 {[%clk 0:00:43]} 41. Rag4 {[%clk 0:00:50]}  Rf7 {[%clk 0:00:44]} 42. f6 {[%clk 0:00:44]}  Rxf6 {[%clk 0:00:40]} 43. Rxe5 {[%clk 0:00:44]}  Rd6 {[%clk 0:00:30]} 44. Rgg5 {[%clk 0:00:43]}  a4 {[%clk 0:00:25]} 45. bxa4 {[%clk 0:00:39]}  Ra5 {[%clk 0:00:25]} 46. Rxd5 {[%clk 0:00:39]}  Rxd5 {[%clk 0:00:25]} 47. Rxd5 {[%clk 0:00:39]}  Rxa4 {[%clk 0:00:26]} 48. Rxc5 {[%clk 0:00:33]}  Rxa3+ {[%clk 0:00:26]} 49. Kd4 {[%clk 0:00:34]}  Ra4+ {[%clk 0:00:25]} 50. Rc4 {[%clk 0:00:34]}  Ra5 {[%clk 0:00:26]} 51. Kc3 {[%clk 0:00:30]}  h5 {[%clk 0:00:24]} 52. d4 {[%clk 0:00:28]}  Ke7 {[%clk 0:00:24]} 53. Rc5 {[%clk 0:00:27]}  Ra3+ {[%clk 0:00:23]} 54. Kc4 {[%clk 0:00:27]}  Kd6 {[%clk 0:00:19]} 55. Rd5+ {[%clk 0:00:24]}  Kc6 {[%clk 0:00:19]} 56. Rxh5 {[%clk 0:00:24]}  Ra4+ {[%clk 0:00:19]} 57. Kd3 {[%clk 0:00:25]}  Kd6 {[%clk 0:00:20]} 58. Ke4 {[%clk 0:00:24]}  Ra1 {[%clk 0:00:19]} 59. Rh6+ {[%clk 0:00:25]}  Ke7 {[%clk 0:00:20]} 60. h5 {[%clk 0:00:20]}  Ra5 {[%clk 0:00:19]} 61. Rh7+ {[%clk 0:00:18]}  Kd6 {[%clk 0:00:18]} 62. h6 {[%clk 0:00:18]}  Rh5 {[%clk 0:00:19]} 63. Rh8 {[%clk 0:00:17]}  Rh4+ {[%clk 0:00:19]} 64. Kd3 {[%clk 0:00:18]}  Kc7 {[%clk 0:00:12]} 65. Kc4 {[%clk 0:00:17]}  Kb7 {[%clk 0:00:11]} 66. h7 {[%clk 0:00:17]}  Rh1 {[%clk 0:00:10]} 67. Kc5 {[%clk 0:00:17]}  Rc1+ {[%clk 0:00:09]} 68. Kd6 {[%clk 0:00:17]}  Rh1 {[%clk 0:00:10]} 69. d5 {[%clk 0:00:17]}  Rh6+ {[%clk 0:00:11]} 70. Ke5 {[%clk 0:00:17]}  Rh5+ {[%clk 0:00:11]} 71. Ke4 {[%clk 0:00:17]}  Rh4+ {[%clk 0:00:11]} 72. Kf5 {[%clk 0:00:17]}  Rh5+ {[%clk 0:00:11]} 73. Kg4 {[%clk 0:00:17]}  Rh1 {[%clk 0:00:11]} 74. d6 {[%clk 0:00:17]} 1-0


[Site "https://www.chess.com"]

[Event "Titled Tuesday Blitz December 27 Late 2022"]
[White "Federzoni, Enzo"]
[Black "Matinian, Nikita"]
[WhiteFideId "2173301"]
[BlackFideId "24129100"]
[WhiteElo "2133"]
[BlackElo "2407"]
[Result "0-1"]
[Round "01"]
[TimeControl "180+2"]
[Date "2022.12.27"]
[WhiteClock "0:00:57"]
[BlackClock "0:01:55"]

1. c4 {[%clk 0:02:59]}  e5 {[%clk 0:02:59]} 2. d3 {[%clk 0:02:57]}  f5 {[%clk 0:02:58]} 3. Nc3 {[%clk 0:02:56]}  Nf6 {[%clk 0:02:59]} 4. g3 {[%clk 0:02:57]}  Bb4 {[%clk 0:02:59]} 5. Bg2 {[%clk 0:02:57]}  O-O {[%clk 0:02:59]} 6. Bd2 {[%clk 0:02:56]}  Nc6 {[%clk 0:02:58]} 7. Nf3 {[%clk 0:02:55]}  d6 {[%clk 0:02:58]} 8. O-O {[%clk 0:02:55]}  Bxc3 {[%clk 0:02:56]} 9. Bxc3 {[%clk 0:02:55]}  Qe8 {[%clk 0:02:57]} 10. b4 {[%clk 0:02:21]}  Qh5 {[%clk 0:02:50]} 11. b5 {[%clk 0:02:20]}  Nd8 {[%clk 0:02:48]} 12. e3 {[%clk 0:01:51]}  f4 {[%clk 0:02:39]} 13. exf4 {[%clk 0:01:50]}  exf4 {[%clk 0:02:31]} 14. Nd4 {[%clk 0:01:36]}  Bg4 {[%clk 0:02:30]} 15. Qb3 {[%clk 0:01:31]}  f3 {[%clk 0:02:27]} 16. Bh1 {[%clk 0:01:28]}  Nf7 {[%clk 0:02:25]} 17. Rfe1 {[%clk 0:01:14]}  Ng5 {[%clk 0:02:23]} 18. c5+ {[%clk 0:01:14]}  d5 {[%clk 0:02:22]} 19. Re7 {[%clk 0:01:05]}  Rae8 {[%clk 0:02:19]} 20. Rae1 {[%clk 0:01:05]}  Nh3+ {[%clk 0:02:15]} 21. Kf1 {[%clk 0:01:04]}  Nxf2 {[%clk 0:02:03]} 22. Rxe8 {[%clk 0:01:02]}  Qh3+ {[%clk 0:01:58]} 23. Kxf2 {[%clk 0:01:02]}  Qxh2+ {[%clk 0:01:58]} 24. Ke3 {[%clk 0:00:57]}  Rxe8+ {[%clk 0:01:57]} 25. Kf4 {[%clk 0:00:57]}  Qh6# {[%clk 0:01:55]} 0-1


[Site "https://www.chess.com"]